[Event "ONJK 2024 ABC"]
[Site "Velp, Netherlands"]
[Date "2024.08.03"]
[Round "3.16"]
[White "Georgopoulos, Mylo"]
[Black "Van Ewijk, Abel"]
[Result "1-0"]
[TimeControl "90 minutes + 30 seconds"]
[WhiteElo "1776"]
[BlackElo "1484"]

1. e4 {[%clk 01:30:59]} {[%emt 00:00:01]} e5 {[%clk 01:30:59]} {[%emt
00:00:01]} 2. Nf3 {[%clk 01:31:25]} {[%emt 00:00:04]} Nc6 {[%clk 01:31:22]}
{[%emt 00:00:07]} 3. Bc4 {[%clk 01:31:52]} {[%emt 00:00:02]} Bc5 {[%clk
01:31:43]} {[%emt 00:00:10]} 4. d3 {[%clk 01:32:19]} {[%emt 00:00:03]} Nf6
{[%clk 01:32:00]} {[%emt 00:00:12]} 5. Bg5 {[%clk 01:32:43]} {[%emt 00:00:06]}
h6 {[%clk 01:32:17]} {[%emt 00:00:14]} 6. Bh4 {[%clk 01:33:10]} {[%emt
00:00:03]} d6 {[%clk 01:32:37]} {[%emt 00:00:10]} 7. Nc3 {[%clk 01:33:36]}
{[%emt 00:00:05]} Be6 {[%clk 01:32:52]} {[%emt 00:00:15]} 8. Qe2 {[%clk
01:33:26]} {[%emt 00:00:40]} Qe7 {[%clk 01:32:14]} {[%emt 00:01:08]} 9. Bd5
{[%clk 01:33:02]} {[%emt 00:00:54]} Nd4 {[%clk 01:13:24]} {[%emt 00:19:19]} 10.
Nxd4 {[%clk 01:31:44]} {[%emt 00:01:48]} Bxd4 {[%clk 01:13:37]} {[%emt
00:00:17]} 11. Bxb7 {[%clk 01:31:54]} {[%emt 00:00:20]} Rb8 {[%clk 01:13:44]}
{[%emt 00:00:23]} 12. Bc6+ {[%clk 01:32:18]} {[%emt 00:00:07]} Bd7 {[%clk
01:13:47]} {[%emt 00:00:27]} 13. Nd5 {[%clk 01:32:38]} {[%emt 00:00:10]} Qd8
{[%clk 01:12:54]} {[%emt 00:01:23]} 14. Bxd7+ {[%clk 01:31:19]} {[%emt
00:01:49]} Kxd7 {[%clk 01:10:57]} {[%emt 00:02:27]} 15. Qf3 {[%clk 01:29:19]}
{[%emt 00:02:30]} Rxb2 {[%clk 01:07:50]} {[%emt 00:03:36]} 16. c3 {[%clk
01:27:49]} {[%emt 00:02:02]} Bc5 {[%clk 01:06:12]} {[%emt 00:02:06]} 17. O-O
{[%clk 01:27:39]} {[%emt 00:00:40]} Qf8 {[%clk 01:05:00]} {[%emt 00:01:41]} 18.
Rab1 {[%clk 01:25:25]} {[%emt 00:02:45]} Rxb1 {[%clk 01:03:25]} {[%emt
00:02:05]} 19. Rxb1 {[%clk 01:25:49]} {[%emt 00:00:06]} Nxd5 {[%clk 01:03:45]}
{[%emt 00:00:10]} 20. exd5 {[%clk 01:26:09]} {[%emt 00:00:10]} g5 {[%clk
01:03:42]} {[%emt 00:00:32]} 21. Qf5+ {[%clk 01:25:51]} {[%emt 00:00:49]} Ke7
{[%clk 01:03:24]} {[%emt 00:00:49]} 22. d4 {[%clk 01:25:22]} {[%emt 00:00:58]}
exd4 {[%clk 01:02:44]} {[%emt 00:01:09]} 23. cxd4 {[%clk 01:23:48]} {[%emt
00:02:05]} Bxd4 {[%clk 01:02:01]} {[%emt 00:01:12]} 24. Qe4+ {[%clk 01:23:31]}
{[%emt 00:00:48]} Be5 {[%clk 01:02:09]} {[%emt 00:00:22]} 25. Bg3 {[%clk
01:23:52]} {[%emt 00:00:09]} f6 {[%clk 01:02:13]} {[%emt 00:00:26]} 26. Qf5
{[%clk 01:23:35]} {[%emt 00:00:48]} Qf7 {[%clk 01:01:47]} {[%emt 00:00:54]} 27.
Rb7 {[%clk 01:22:37]} {[%emt 00:01:29]} Kf8 {[%clk 01:01:48]} {[%emt 00:00:28]}
28. Bxe5 {[%clk 01:19:12]} {[%emt 00:03:57]} fxe5 {[%clk 00:46:29]} {[%emt
00:15:49]} 29. Rb8+ {[%clk 01:18:19]} {[%emt 00:01:22]} Kg7 {[%clk 00:45:54]}
{[%emt 00:01:05]} 30. Qxf7+ {[%clk 01:18:43]} {[%emt 00:00:07]} Kxf7 {[%clk
00:46:16]} {[%emt 00:00:08]} 31. Rxh8 {[%clk 01:19:09]} {[%emt 00:00:04]} Kg7
{[%clk 00:45:39]} {[%emt 00:01:07]} 32. Rc8 {[%clk 01:19:33]} {[%emt 00:00:06]}
Kf6 {[%clk 00:46:01]} {[%emt 00:00:08]} 33. Rxc7 {[%clk 01:19:53]} {[%emt
00:00:11]} e4 {[%clk 00:45:48]} {[%emt 00:00:41]} 34. Rxa7 {[%clk 01:20:14]}
{[%emt 00:00:10]} Ke5 {[%clk 00:46:04]} {[%emt 00:00:14]} 35. Rb7 {[%clk
01:19:55]} {[%emt 00:00:49]} Kxd5 {[%clk 00:46:10]} {[%emt 00:00:23]} 36. a4
{[%clk 01:20:18]} {[%emt 00:00:08]} Kc6 {[%clk 00:46:13]} {[%emt 00:00:26]} 37.
Rb1 {[%clk 01:20:42]} {[%emt 00:00:06]} d5 {[%clk 00:46:19]} {[%emt 00:00:24]}
38. a5 {[%clk 01:21:04]} {[%emt 00:00:08]} d4 {[%clk 00:46:44]} {[%emt
00:00:05]} 39. a6 {[%clk 01:21:28]} {[%emt 00:00:07]} d3 {[%clk 00:47:03]}
{[%emt 00:00:10]} 40. a7 {[%clk 01:21:53]} {[%emt 00:00:05]} d2 {[%clk
00:47:14]} {[%emt 00:00:19]} 41. a8=Q+ {[%clk 01:22:18]} {[%emt 00:00:05]} Kc5
{[%clk 00:47:32]} {[%emt 00:00:12]} 42. Qc8+ {[%clk 01:22:35]} {[%emt
00:00:13]} Kd4 {[%clk 00:47:45]} {[%emt 00:00:17]} 43. Rd1 {[%clk 01:22:33]}
{[%emt 00:00:33]} e3 {[%clk 00:47:05]} {[%emt 00:01:09]} 44. fxe3+ {[%clk
01:22:54]} {[%emt 00:00:09]} Kxe3 {[%clk 00:47:30]} {[%emt 00:00:05]} 45. Qe6+
{[%clk 01:23:08]} {[%emt 00:00:16]} Kf4 {[%clk 00:47:29]} {[%emt 00:00:31]} 46.
Rxd2 {[%clk 01:23:24]} {[%emt 00:00:14]} g4 {[%clk 00:47:19]} {[%emt 00:00:40]}
47. Rf2+ {[%clk 01:23:42]} {[%emt 00:00:12]} Kg5 {[%clk 00:47:26]} {[%emt
00:00:23]} 48. Rf5+ {[%clk 01:23:52]} {[%emt 00:00:21]} Kh4 {[%clk 00:47:42]}
{[%emt 00:00:13]} 49. Qxh6# {[%clk 01:24:14]} {[%emt 00:00:06]} 1-0

[Event "ONJK 2024 ABC"]
[Site "Velp, Netherlands"]
[Date "2024.08.03"]
[Round "3.17"]
[White "Dijkhuijsen, Thomas"]
[Black "Bloemberg, Jesper"]
[Result "1-0"]
[TimeControl "90 minutes + 30 seconds"]
[WhiteElo "1750"]
[BlackElo "1692"]

1. e4 {[%clk 01:30:58]} {[%emt 00:00:01]} c5 {[%clk 01:30:53]} {[%emt
00:00:07]} 2. Nf3 {[%clk 01:31:20]} {[%emt 00:00:08]} Nc6 {[%clk 01:31:08]}
{[%emt 00:00:15]} 3. d4 {[%clk 01:31:40]} {[%emt 00:00:10]} cxd4 {[%clk
01:31:31]} {[%emt 00:00:07]} 4. Nxd4 {[%clk 01:32:03]} {[%emt 00:00:08]} g6
{[%clk 01:31:54]} {[%emt 00:00:06]} 5. Bc4 {[%clk 01:31:47]} {[%emt 00:00:46]}
Bg7 {[%clk 01:31:00]} {[%emt 00:01:24]} 6. Nxc6 {[%clk 01:27:42]} {[%emt
00:04:35]} bxc6 {[%clk 01:31:25]} {[%emt 00:00:34]} 7. Qf3 {[%clk 01:27:42]}
{[%emt 00:01:01]} Nf6 {[%clk 01:30:42]} {[%emt 00:01:13]} 8. Nc3 {[%clk
01:25:19]} {[%emt 00:02:54]} O-O {[%clk 01:28:55]} {[%emt 00:02:16]} 9. Be3
{[%clk 01:21:47]} {[%emt 00:04:02]} Ne8 {[%clk 01:17:20]} {[%emt 00:12:04]} 10.
O-O {[%clk 01:18:57]} {[%emt 00:03:21]} Nd6 {[%clk 01:14:12]} {[%emt 00:03:39]}
11. Bb3 {[%clk 01:18:41]} {[%emt 00:00:45]} Bb7 {[%clk 01:07:14]} {[%emt
00:07:28]} 12. Bc5 {[%clk 01:15:15]} {[%emt 00:03:56]} Qa5 {[%clk 01:05:15]}
{[%emt 00:02:30]} 13. Qe3 {[%clk 01:12:43]} {[%emt 00:03:01]} Rfe8 {[%clk
01:01:51]} {[%emt 00:03:54]} 14. Rad1 {[%clk 01:10:50]} {[%emt 00:02:23]} Qc7
{[%clk 00:58:00]} {[%emt 00:04:21]} 15. Bxa7 {[%clk 01:07:23]} {[%emt
00:03:58]} Nc8 {[%clk 00:57:44]} {[%emt 00:00:46]} 16. Bd4 {[%clk 01:05:00]}
{[%emt 00:02:53]} e5 {[%clk 00:56:34]} {[%emt 00:01:40]} 17. Bc5 {[%clk
01:02:52]} {[%emt 00:02:38]} d6 {[%clk 00:55:21]} {[%emt 00:01:42]} 18. Ba3
{[%clk 01:00:39]} {[%emt 00:02:43]} Rd8 {[%clk 00:49:36]} {[%emt 00:06:16]} 19.
Qg3 {[%clk 00:52:35]} {[%emt 00:08:32]} Bf8 {[%clk 00:45:26]} {[%emt 00:04:42]}
20. f4 {[%clk 00:47:25]} {[%emt 00:05:39]} Nb6 {[%clk 00:42:20]} {[%emt
00:03:36]} 21. fxe5 {[%clk 00:46:05]} {[%emt 00:01:50]} d5 {[%clk 00:40:23]}
{[%emt 00:02:26]} 22. Bxf8 {[%clk 00:42:06]} {[%emt 00:04:29]} Rxf8 {[%clk
00:40:02]} {[%emt 00:00:52]} 23. exd5 {[%clk 00:40:47]} {[%emt 00:01:49]} cxd5
{[%clk 00:40:15]} {[%emt 00:00:18]} 24. Qf4 {[%clk 00:35:13]} {[%emt 00:06:03]}
Rad8 {[%clk 00:39:05]} {[%emt 00:01:39]} 25. Rd4 {[%clk 00:30:04]} {[%emt
00:05:40]} Qc5 {[%clk 00:37:09]} {[%emt 00:02:25]} 26. Kh1 {[%clk 00:27:47]}
{[%emt 00:02:47]} Qe7 {[%clk 00:34:19]} {[%emt 00:03:21]} 27. Rfd1 {[%clk
00:26:57]} {[%emt 00:01:20]} Rd7 {[%clk 00:34:01]} {[%emt 00:00:48]} 28. Nxd5
{[%clk 00:26:13]} {[%emt 00:01:13]} Nxd5 {[%clk 00:34:15]} {[%emt 00:00:17]} 29.
Bxd5 {[%clk 00:26:28]} {[%emt 00:00:15]} Bxd5 {[%clk 00:34:06]} {[%emt
00:00:39]} 30. Rxd5 {[%clk 00:26:43]} {[%emt 00:00:15]} Rb7 {[%clk 00:33:48]}
{[%emt 00:00:48]} 31. Qd4 {[%clk 00:24:55]} {[%emt 00:02:17]} Rb4 {[%clk
00:33:26]} {[%emt 00:00:53]} 32. Qc3 {[%clk 00:24:27]} {[%emt 00:00:58]} Re4
{[%clk 00:32:53]} {[%emt 00:01:02]} 33. Qc5 {[%clk 00:22:16]} {[%emt 00:02:43]}
Qxc5 {[%clk 00:33:09]} {[%emt 00:00:14]} 34. Rxc5 {[%clk 00:22:37]} {[%emt
00:00:09]} Re8 {[%clk 00:33:35]} {[%emt 00:00:03]} 35. h3 {[%clk 00:22:28]}
{[%emt 00:00:39]} R8xe5 {[%clk 00:33:43]} {[%emt 00:00:22]} 36. Rxe5 {[%clk
00:22:23]} {[%emt 00:00:35]} Rxe5 {[%clk 00:34:06]} {[%emt 00:00:07]} 37. Rd2
{[%clk 00:22:26]} {[%emt 00:00:27]} g5 {[%clk 00:34:07]} {[%emt 00:00:30]} 38.
a4 {[%clk 00:22:23]} {[%emt 00:00:32]} h5 {[%clk 00:34:21]} {[%emt 00:00:16]}
39. b4 {[%clk 00:22:24]} {[%emt 00:00:30]} g4 {[%clk 00:34:22]} {[%emt
00:00:28]} 40. hxg4 {[%clk 00:22:02]} {[%emt 00:00:51]} hxg4 {[%clk 00:34:47]}
{[%emt 00:00:05]} 41. g3 {[%clk 00:22:03]} {[%emt 00:00:30]} Re3 {[%clk
00:34:56]} {[%emt 00:00:20]} 42. Kg2 {[%clk 00:22:17]} {[%emt 00:00:17]} Ra3
{[%clk 00:35:14]} {[%emt 00:00:12]} 43. a5 {[%clk 00:22:20]} {[%emt 00:00:27]}
Ra4 {[%clk 00:35:35]} {[%emt 00:00:09]} 44. Rd4 {[%clk 00:22:04]} {[%emt
00:00:46]} Ra2 {[%clk 00:35:49]} {[%emt 00:00:16]} 45. Rxg4+ {[%clk 00:22:21]}
{[%emt 00:00:11]} Kf8 {[%clk 00:36:14]} {[%emt 00:00:07]} 46. Rc4 {[%clk
00:22:37]} {[%emt 00:00:14]} 1-0

[Event "ONJK 2024 ABC"]
[Site "Velp, Netherlands"]
[Date "2024.08.03"]
[Round "3.18"]
[White "Zouridis, Christian"]
[Black "Breider, Jayden"]
[Result "1/2-1/2"]
[TimeControl "90 minutes + 30 seconds"]
[WhiteElo "1713"]
[BlackElo "1594"]

1. e4 {[%clk 01:30:56]} {[%emt 00:00:03]} c5 {[%clk 01:30:53]} {[%emt
00:00:07]} 2. Nf3 {[%clk 01:31:14]} {[%emt 00:00:12]} d6 {[%clk 01:31:18]}
{[%emt 00:00:06]} 3. d4 {[%clk 01:31:39]} {[%emt 00:00:05]} cxd4 {[%clk
01:31:42]} {[%emt 00:00:06]} 4. Nxd4 {[%clk 01:31:50]} {[%emt 00:00:19]} Nf6
{[%clk 01:32:02]} {[%emt 00:00:11]} 5. Nc3 {[%clk 01:31:53]} {[%emt 00:00:26]}
a6 {[%clk 01:32:14]} {[%emt 00:00:18]} 6. Be3 {[%clk 01:31:33]} {[%emt
00:00:50]} e5 {[%clk 01:32:38]} {[%emt 00:00:07]} 7. Nb3 {[%clk 01:31:48]}
{[%emt 00:00:15]} Be7 {[%clk 01:33:01]} {[%emt 00:00:06]} 8. Qd2 {[%clk
01:31:40]} {[%emt 00:00:38]} Be6 {[%clk 01:32:38]} {[%emt 00:00:53]} 9. f3
{[%clk 01:30:40]} {[%emt 00:01:30]} h5 {[%clk 01:31:28]} {[%emt 00:01:40]} 10.
Nd5 {[%clk 01:28:14]} {[%emt 00:02:55]} Nxd5 {[%clk 01:30:26]} {[%emt
00:01:33]} 11. exd5 {[%clk 01:28:25]} {[%emt 00:00:19]} Bf5 {[%clk 01:30:55]}
{[%emt 00:00:02]} 12. Bd3 {[%clk 01:25:32]} {[%emt 00:03:22]} Bxd3 {[%clk
01:25:52]} {[%emt 00:05:32]} 13. Qxd3 {[%clk 01:24:48]} {[%emt 00:01:14]} Nd7
{[%clk 01:24:13]} {[%emt 00:02:10]} 14. O-O-O {[%clk 01:21:45]} {[%emt
00:03:33]} Bg5 {[%clk 01:20:44]} {[%emt 00:03:59]} 15. Rhe1 {[%clk 01:16:35]}
{[%emt 00:05:40]} O-O {[%clk 01:16:39]} {[%emt 00:04:35]} 16. g4 {[%clk
01:04:59]} {[%emt 00:12:07]} h4 {[%clk 01:15:12]} {[%emt 00:01:56]} 17. Qd2
{[%clk 01:02:25]} {[%emt 00:03:04]} Bxe3 {[%clk 01:11:24]} {[%emt 00:04:18]}
1/2-1/2

[Event "ONJK 2024 ABC"]
[Site "Velp, Netherlands"]
[Date "2024.08.03"]
[Round "3.19"]
[White "Van Duuren, Gilead"]
[Black "Burger, Dominick"]
[Result "0-1"]
[TimeControl "90 minutes + 30 seconds"]
[WhiteElo "1629"]
[BlackElo "1686"]

1. d4 {[%clk 01:30:47]} {[%emt 00:00:12]} Nf6 {[%clk 01:30:57]} {[%emt
00:00:04]} 2. Bf4 {[%clk 01:30:39]} {[%emt 00:00:37]} g6 {[%clk 01:31:16]}
{[%emt 00:00:12]} 3. e3 {[%clk 01:30:52]} {[%emt 00:00:16]} Bg7 {[%clk
01:31:37]} {[%emt 00:00:10]} 4. Nf3 {[%clk 01:30:34]} {[%emt 00:00:47]} d6
{[%clk 01:31:55]} {[%emt 00:00:13]} 5. Bc4 {[%clk 01:30:33]} {[%emt 00:00:30]}
Nbd7 {[%clk 01:32:11]} {[%emt 00:00:15]} 6. c3 {[%clk 01:30:28]} {[%emt
00:00:34]} O-O {[%clk 01:32:29]} {[%emt 00:00:13]} 7. Nbd2 {[%clk 01:30:52]}
{[%emt 00:00:06]} c5 {[%clk 01:32:50]} {[%emt 00:00:10]} 8. Qb3 {[%clk
01:29:47]} {[%emt 00:01:33]} h6 {[%clk 01:32:51]} {[%emt 00:00:30]} 9. h3
{[%clk 01:29:16]} {[%emt 00:01:01]} a6 {[%clk 01:33:09]} {[%emt 00:00:13]} 10.
a4 {[%clk 01:29:28]} {[%emt 00:00:17]} Nb6 {[%clk 01:31:20]} {[%emt 00:02:19]}
11. Bd3 {[%clk 01:29:29]} {[%emt 00:00:28]} Be6 {[%clk 01:27:17]} {[%emt
00:04:34]} 12. Qc2 {[%clk 01:29:06]} {[%emt 00:00:51]} c4 {[%clk 01:27:18]}
{[%emt 00:00:31]} 13. Be2 {[%clk 01:28:33]} {[%emt 00:01:02]} Nh5 {[%clk
01:26:20]} {[%emt 00:01:29]} 14. Bh2 {[%clk 01:27:20]} {[%emt 00:01:42]} f5
{[%clk 01:25:50]} {[%emt 00:01:01]} 15. g4 {[%clk 01:24:38]} {[%emt 00:03:13]}
fxg4 {[%clk 01:26:08]} {[%emt 00:00:12]} 16. hxg4 {[%clk 01:24:42]} {[%emt
00:00:24]} Bxg4 {[%clk 01:26:29]} {[%emt 00:00:10]} 17. Qxg6 {[%clk 01:24:59]}
{[%emt 00:00:10]} Qc8 {[%clk 01:25:54]} {[%emt 00:01:07]} 18. Bf4 {[%clk
01:20:32]} {[%emt 00:04:56]} Nxf4 {[%clk 01:24:59]} {[%emt 00:01:27]} 19. exf4
{[%clk 01:20:38]} {[%emt 00:00:23]} Rf6 {[%clk 01:25:19]} {[%emt 00:00:10]} 20.
Qe4 {[%clk 01:19:15]} {[%emt 00:01:52]} Re6 {[%clk 01:25:07]} {[%emt 00:00:44]}
21. Qc2 {[%clk 01:19:33]} {[%emt 00:00:11]} Bf5 {[%clk 01:25:16]} {[%emt
00:00:23]} 22. Qd1 {[%clk 01:18:20]} {[%emt 00:01:40]} Bd3 {[%clk 01:25:16]}
{[%emt 00:00:31]} 23. Ng1 {[%clk 01:18:13]} {[%emt 00:00:37]} Nd5 {[%clk
01:25:22]} {[%emt 00:00:25]} 24. Kf1 {[%clk 01:17:33]} {[%emt 00:01:08]} Nxf4
{[%clk 01:24:07]} {[%emt 00:01:48]} 25. Bxd3 {[%clk 01:17:19]} {[%emt
00:00:43]} Nxd3 {[%clk 01:24:28]} {[%emt 00:00:09]} 26. Rh4 {[%clk 01:16:49]}
{[%emt 00:00:59]} Qf8 {[%clk 01:23:23]} {[%emt 00:01:36]} 27. Qf3 {[%clk
01:14:49]} {[%emt 00:02:29]} Rf6 {[%clk 01:23:39]} {[%emt 00:00:16]} 28. Qd1
{[%clk 01:30:30]} {[%emt 00:06:03]} 0-1

[Event "ONJK 2024 ABC"]
[Site "Velp, Netherlands"]
[Date "2024.08.03"]
[Round "3.20"]
[White "Formanoy, David"]
[Black "Deij, Casper"]
[Result "1-0"]
[TimeControl "90 minutes + 30 seconds"]
[WhiteElo "1686"]
[BlackElo "1629"]

1. e4 {[%clk 01:30:59]} e5 {[%clk 01:30:55]} {[%emt 00:00:06]} 2. Nf3 {[%clk
01:31:26]} {[%emt 00:00:03]} Nc6 {[%clk 01:31:21]} {[%emt 00:00:04]} 3. Bc4
{[%clk 01:31:52]} {[%emt 00:00:04]} Bc5 {[%clk 01:31:47]} {[%emt 00:00:04]} 4.
d3 {[%clk 01:32:11]} {[%emt 00:00:11]} Nf6 {[%clk 01:32:08]} {[%emt 00:00:09]}
5. Nc3 {[%clk 01:32:19]} {[%emt 00:00:21]} d6 {[%clk 01:32:34]} {[%emt
00:00:05]} 6. h3 {[%clk 01:32:37]} {[%emt 00:00:12]} Be6 {[%clk 01:32:59]}
{[%emt 00:00:05]} 7. Bxe6 {[%clk 01:32:31]} {[%emt 00:00:36]} fxe6 {[%clk
01:33:21]} {[%emt 00:00:07]} 8. O-O {[%clk 01:32:47]} {[%emt 00:00:14]} Qd7
{[%clk 01:32:44]} {[%emt 00:01:07]} 9. a3 {[%emt 00:03:26]} O-O-O {[%clk
01:31:13]} {[%emt 00:00:14]} 10. Na4 {[%clk 01:31:17]} {[%emt 00:00:51]} Bb6
{[%clk 01:29:40]} {[%emt 00:02:03]} 11. Nxb6+ {[%clk 01:31:37]} {[%emt
00:00:10]} cxb6 {[%clk 01:30:04]} {[%emt 00:00:06]} 12. c3 {[%clk 01:30:40]}
{[%emt 00:01:27]} d5 {[%clk 01:29:43]} {[%emt 00:00:50]} 13. Qe2 {[%clk
01:28:44]} {[%emt 00:02:25]} Rde8 {[%clk 01:28:40]} {[%emt 00:01:35]} 14. b4
{[%clk 01:27:56]} {[%emt 00:01:18]} Rhf8 {[%clk 01:27:57]} {[%emt 00:01:12]} 15.
Bb2 {[%clk 01:27:31]} {[%emt 00:00:56]} Nh5 {[%clk 01:26:26]} {[%emt 00:02:01]}
16. g3 {[%clk 01:22:07]} {[%emt 00:05:54]} h6 {[%clk 01:23:40]} {[%emt
00:03:16]} 17. Rab1 {[%clk 01:17:12]} {[%emt 00:05:25]} Qf7 {[%clk 01:18:48]}
{[%emt 00:05:21]} 18. Nh2 {[%clk 01:10:01]} {[%emt 00:07:42]} Qg6 {[%clk
01:15:25]} {[%emt 00:03:53]} 19. Qg4 {[%clk 01:08:45]} {[%emt 00:01:41]} Qxg4
{[%clk 01:14:03]} {[%emt 00:01:56]} 20. hxg4 {[%clk 01:09:06]} {[%emt
00:00:10]} Nf6 {[%clk 01:13:44]} {[%emt 00:00:49]} 21. Rfe1 {[%clk 01:07:53]}
{[%emt 00:01:43]} g5 {[%clk 01:10:15]} {[%emt 00:03:59]} 22. Re2 {[%clk
01:07:40]} {[%emt 00:00:43]} Rh8 {[%clk 01:09:54]} {[%emt 00:00:51]} 23. Rbe1
{[%clk 01:06:35]} {[%emt 00:01:35]} d4 {[%clk 01:02:49]} {[%emt 00:07:35]} 24.
Rc2 {[%clk 01:05:19]} {[%emt 00:01:46]} Kb8 {[%clk 01:01:43]} {[%emt 00:01:37]}
25. b5 {[%clk 01:04:04]} {[%emt 00:01:44]} dxc3 {[%clk 01:00:04]} {[%emt
00:02:10]} 26. Rxc3 {[%clk 01:02:56]} {[%emt 00:01:38]} Nd4 {[%clk 01:00:22]}
{[%emt 00:00:11]} 27. Rc4 {[%clk 01:02:28]} {[%emt 00:00:59]} Rd8 {[%clk
00:58:48]} {[%emt 00:02:04]} 28. Bxd4 {[%clk 00:57:29]} {[%emt 00:05:28]} Rxd4
{[%clk 00:57:53]} {[%emt 00:01:24]} 29. Rxd4 {[%clk 00:57:22]} {[%emt
00:00:38]} exd4 {[%clk 00:58:02]} {[%emt 00:00:20]} 30. e5 {[%clk 00:57:32]}
{[%emt 00:00:21]} Nd5 {[%clk 00:56:45]} {[%emt 00:01:48]} 31. Nf3 {[%clk
00:56:30]} {[%emt 00:01:32]} Nc7 {[%clk 00:55:36]} {[%emt 00:01:38]} 32. Nxd4
{[%clk 00:55:31]} {[%emt 00:01:29]} Rd8 {[%clk 00:56:00]} {[%emt 00:00:06]} 33.
Re4 {[%clk 00:55:15]} {[%emt 00:00:46]} Rd5 {[%clk 00:55:54]} {[%emt 00:00:36]}
34. a4 {[%clk 00:54:59]} {[%emt 00:00:47]} Rc5 {[%clk 00:54:06]} {[%emt
00:02:15]} 35. f4 {[%clk 00:50:28]} {[%emt 00:05:03]} Rc3 {[%clk 00:52:53]}
{[%emt 00:01:43]} 36. f5 {[%clk 00:47:03]} {[%emt 00:03:55]} exf5 {[%clk
00:46:07]} {[%emt 00:07:16]} 37. gxf5 {[%clk 00:47:05]} {[%emt 00:00:28]} Rxd3
{[%clk 00:45:32]} {[%emt 00:01:05]} 38. f6 {[%clk 00:47:00]} {[%emt 00:00:35]}
Rxd4 {[%clk 00:43:11]} {[%emt 00:02:50]} 39. Rxd4 {[%clk 00:47:19]} {[%emt
00:00:12]} Ne6 {[%clk 00:43:35]} {[%emt 00:00:05]} 40. Rd6 {[%clk 00:47:23]}
{[%emt 00:00:25]} Nc5 {[%clk 00:42:26]} {[%emt 00:01:41]} 41. f7 {[%clk
00:47:10]} {[%emt 00:00:43]} Nxa4 {[%clk 00:42:41]} {[%emt 00:00:15]} 42. f8=Q+
{[%clk 00:47:11]} {[%emt 00:00:28]} Kc7 {[%clk 00:43:05]} {[%emt 00:00:07]} 43.
Qe7+ {[%clk 00:47:16]} {[%emt 00:00:25]} Kc8 {[%clk 00:43:27]} {[%emt
00:00:08]} 44. Qd8# {[%clk 00:47:36]} {[%emt 00:00:11]} 1-0